Cogmind - Beta 16.1 @@@ ROGUE MODE // 2026.03.03 @ 01:27:30 Player: Deloads Result: Destroyed by DAS Turret with DAS Cannon Performance ------------- Evolutions (0) 0 Regions Visited (3) 600 Robots Destroyed (3) 15 Value Destroyed (108) 108 Prototype IDs (23) 460 Alien Tech Used (0) 0 Bonus (300) 300 TOTAL SCORE: 1483 Bonus ------- Aligned with FarCom 300 Cogmind --------- Core Integrity 0/250 Matter 211/300 Energy 246/250 System Corruption 7% Temperature Cool (2) Movement Walking (120) Location -10/Exiles Parts ------- > --- POWER (1) -------- Ion Engine > --- PROPULSION (2) --- Aluminum Leg Aluminum Leg > --- UTILITY (2) ------ Small Storage Unit Seismic Detector > --- WEAPON (2) ------- EM Pulse Gun Assault Rifle > --- INVENTORY (8) ---- Reinforced Deuterium Engine Light Treads Light Treads Heat Sink Light Armor Plating Chronowheel Grenade Launcher Mining Laser Peak State ------------ > --- POWER ------------ Ion Engine > --- PROPULSION ------- Aluminum Leg Aluminum Leg > --- UTILITY ---------- Small Storage Unit Seismic Detector > --- WEAPON ----------- EM Pulse Gun Assault Rifle > --- INVENTORY -------- Reinforced Deuterium Engine Light Treads Light Treads Heat Sink Light Armor Plating Chronowheel Grenade Launcher Mining Laser [Rating: 9] Favorites ----------- Power Ion Engine Engine Ion Engine Propulsion Aluminum Leg Leg Aluminum Leg Wheel Wheel Utility Small Storage Unit Device Seismic Detector Storage Small Storage Unit Weapon EM Pulse Gun Energy Gun EM Pulse Gun Ballistic Gun Assault Rifle Launcher Grenade Launcher Special Weapon Mining Laser Build | -11 -10 -10 -10 ------- Run | Yrd Mat Min Exi Slots Evolved . | . . . . Power . | . . . . Propulsion . | . . . . Utility . | . . . . Weapon . | . . . . Parts Attached 13 | 7 6 . . Power 2 | 1 1 . . Engine 2 | 1 1 . . Core . | . . . . Reactor . | . . . . Propulsion 4 | 2 2 . . Treads . | . . . . Leg 2 | . 2 . . Wheel 2 | 2 . . . Hover . | . . . . Flight . | . . . . Utility 2 | 2 . . . Device 1 | 1 . . . Storage 1 | 1 . . . Processor . | . . . . Hackware . | . . . . Protection . | . . . . Artifact . | . . . . Weapon 5 | 2 3 . . Energy Gun 2 | 2 . . . Energy Cannon . | . . . . Ballistic Gun 1 | . 1 . . Ballistic Cannon . | . . . . Launcher 1 | . 1 . . Special Weapon 1 | . 1 . . Impact Weapon . | . . . . Slashing Weapon . | . . . . Piercing Weapon . | . . . . Special Melee Weapon . | . . . . Unidentified Prototypes . | . . . . Parts Lost 4 | . 4 . . Power 1 | . 1 . . Propulsion 1 | . 1 . . Utility . | . . . . Weapon 2 | . 2 . . Highest Loss Streak 4 | . 4 . . To Critical Strikes . | . . . . Average Backups 6 | 3 7 7 7 Power . | . . . . Propulsion 3 | 2 3 3 2 Utility 1 | . 1 2 2 Weapon 1 | . 1 2 2 Tool/Special . | . . . . Unused Backups 8 | . 1 . 7 Power 1 | . . . 1 Propulsion 3 | . . . 3 Utility 2 | . . . 2 Weapon 1 | . 1 . . Tool/Special 1 | . . . 1 Average Slot Usage (%) 93 | . 79 100 100 Engine 12 | . 9 14 14 Leg 22 | . 9 28 28 Wheel 4 | . 14 . . Device 14 | . 14 14 14 Storage 14 | . 14 14 14 Energy Gun 12 | . 9 14 14 Ballistic Gun 9 | . . 14 14 Launcher 2 | . 7 . . Peak Build Rating 9 | 7 7 7 9 Average Rating 6 | 5 5 7 8 On Entrance 5 | . 7 7 7 Avg Prop Armor Cover (%) . | . . . . Naked Turns . | . . . . Heaviest Build 15 | 14 15 15 15 Greatest Support 20 | 20 20 20 20 Greatest Overweight (x) . | . . . . Average Overweight (x) . | . . . . Largest Inventory Capacity 8 | 8 8 8 8 Average Capacity 7 | 6 8 8 8 Most Carried 8 | 7 8 7 8 Average Carried 7 | 4 7 7 7 Final Capacity 8 | 8 8 8 8 Final Carried 8 | 7 7 7 8 Class Distribution -------------------- 100% | Mutant Dominant Class ---------------- Mutant | -10/Materials Mutant | -10/Mines Mutant | -10/Exiles Resources | -11 -10 -10 -10 ----------- Run | Yrd Mat Min Exi Matter Collected 298 | 270 28 . . Remotely . | . . . . Salvage Created 87 | 27 60 . . Parts 4 | 2 2 . . Haulers Intercepted . | . . . . Recyclers Shooed . | . . . . Parts Field Recycled . | . . . . Retrieved Matter . | . . . . Parts Self-Destructed . | . . . . Prevented . | . . . . Parts Restored . | . . . . Kills | -11 -10 -10 -10 ------- Run | Yrd Mat Min Exi Combat Hostiles Destroyed 2 | . 2 . . AOE 2 | . 2 . . Classes Destroyed 2 | 1 1 . . Tunneler 1 | 1 . . . Grunt 2 | . 2 . . Best Kill Streak 2 | 1 2 . . Combat Bots Only 2 | . 2 . . Max Kills in Single Turn 2 | 1 2 . . Gunslinging . | . . . . Exploded 2 | . 2 . . Melee . | . . . . Uniques/NPCs Destroyed . | . . . . Combat | -11 -10 -10 -10 -------- Run | Yrd Mat Min Exi Hostile Shots Fired 16 | . 12 . 4 Missed 4 | . 3 . 1 Hits 12 | . 9 . 3 Projectile 12 | . 9 . 3 Damage Taken 629 | . 461 . 168 Core 297 | . 186 . 111 Absorbed by Shields . | . . . . Core Remaining (%) 100 | 100 . . . Volleys Fired 6 | 1 5 . . Largest 2 | 2 1 . . Hottest 100 | 80 100 . . Shots Fired 8 | 2 5 . 1 Gun 3 | 2 . . 1 Cannon . | . . . . Launcher 2 | . 2 . . Special 3 | . 3 . . Kinetic 1 | . . . 1 Thermal 4 | 1 3 . . Explosive 2 | . 2 . . Electromagnetic 1 | 1 . . . Robot Hit Streak 2 | 1 2 . . Robot Miss Streak . | . . . . Penetration Max . | . . . . Secondary Targets . | . . . . Shots Hit Robots 2 | 1 1 . . Core Hits 6 | 1 4 1 . Critical Kills . | . . . . Critical Parts Destroyed . | . . . . Critical Strikes . | . . . . Melee Attacks . | . . . . Impact . | . . . . Slashing . | . . . . Piercing . | . . . . Sneak Attacks . | . . . . Combat Hostiles . | . . . . Follow-up Attacks . | . . . . Damage Inflicted 123 | 13 107 3 . Guns 13 | 13 . . . Cannons . | . . . . Explosions 107 | . 107 . . Melee . | . . . . Ramming 3 | . . 3 . Kinetic . | . . . . Thermal . | . . . . Explosive 107 | . 107 . . Electromagnetic 13 | 13 . . . Impact . | . . . . Slashing . | . . . . Piercing . | . . . . Highest Corruption 7 | . 7 7 7 Average Corruption 7 | . 7 7 7 Corruption Purged . | . . . . Corruption Blocked . | . . . . Effects 14 | . 3 6 5 Message Errors 3 | . . 2 1 Matter Fused 5 | . 2 1 2 Heat Flow Errors 1 | . . 1 . Data Loss (minor) 2 | . 1 1 . Data Loss (major) 1 | . . 1 . Misfires 1 | . . . 1 Alerts 1 | . . . 1 Overload Shots . | . . . . Overflow Damage . | . . . . Projectiles . | . . . . Explosions . | . . . . Melee . | . . . . Knockbacks . | . . . . Impact . | . . . . Kinetic . | . . . . Secondary . | . . . . Self-Inflicted Damage 80 | . 80 . . Shots 1 | . 1 . . Rammed . | . . . . Targets Rammed 1 | . . 1 . Kicked 1 | . . 1 . Crushed . | . . . . Highest Temperature 256 | 18 68 256 . Average Temperature 75 | 12 30 136 . Received Heat Transfer 63 | . 63 . . Siege Activations . | . . . . Martial Activations . | . . . . Shielding Activations . | . . . . Robots Disrupted . | . . . . Combat Hostiles . | . . . . Robots Corrupted . | . . . . Combat Hostiles . | . . . . Parts Fried . | . . . . Impact Corruptions . | . . . . Robots Melted . | . . . . Combat Hostiles . | . . . . Parts Melted . | . . . . Heat Transferred . | . . . . Parts Sabotaged . | . . . . Parts Stolen . | . . . . Parts Stripped . | . . . . Power Chain Reactions . | . . . . Alert | -11 -10 -10 -10 ------- Run | Yrd Mat Min Exi Maximum Alert Level . | . . . . Low Security (%) 100 | 100 100 100 . Level 1 . | . . . . Level 2 . | . . . . Level 3 . | . . . . Level 4 . | . . . . Level 5 . | . . . . High Security . | . . . . Max Security . | . . . . Peak Influence 105 | . 105 25 . Initial 25 | . . 25 . Average 16 | . 36 4 . Influence Increases 148 | 5 143 . . Destroy 0b10 Robot/C 40 | . 40 . . Destroy 0b10 Robot/NC 5 | 5 . . . Destroy Leader 10 | . 10 . . Successful Hack 6 | . 6 . . Disable Machine 30 | . 30 . . Destroy Structure 27 | . 27 . . Lose Combat Pursuer 30 | . 30 . . Influence Decreases 148 | 5 78 65 . Entered New Map 40 | . . 40 . Time Decay 77 | 5 47 25 . Lost Part 31 | . 31 . . Squads Dispatched . | . . . . Investigation . | . . . . Extermination . | . . . . Reinforcement . | . . . . Assault . | . . . . Garrison . | . . . . Intercept . | . . . . Searches Triggered . | . . . . Construction Impeded . | . . . . Haulers Reinforced . | . . . . Active Scanning Responses . | . . . . Cargo Convoy Interrupts . | . . . . Stealth | -11 -10 -10 -10 --------- Run | Yrd Mat Min Exi Distress Signals . | . . . . Communications Jammed . | . . . . Distress Signals . | . . . . Times Spotted 6 | . 5 . 1 Peak Tracking Total 12 | . 2 . 12 Tactical Retreats 1 | . 1 . . Traps | -11 -10 -10 -10 ------- Run | Yrd Mat Min Exi Traps Triggered . | . . . . Indirectly . | . . . . Trap Hack Attempts . | . . . . Triggered . | . . . . Disarmed . | . . . . Reprogrammed . | . . . . Reused . | . . . . Traps Extracted . | . . . . Installed . | . . . . Triggered . | . . . . Machines | -11 -10 -10 -10 ---------- Run | Yrd Mat Min Exi Machines Disabled 3 | . 2 . 1 Max in Single Turn 2 | . 2 . 1 Machines Repaired . | . . . . Machines Dismantled . | . . . . Machines Sabotaged . | . . . . Overloaded Fab Kills . | . . . . Hacking | -11 -10 -10 -10 --------- Run | Yrd Mat Min Exi Machines Accessed 5 | . 4 . 1 Terminals 4 | . 4 . . Fabricators . | . . . . Repair Stations . | . . . . Recycling Units . | . . . . Scanalyzers . | . . . . Garrison Access . | . . . . Total Hacks 11 | . 10 . 1 Successful 2 | . 1 . 1 Failed 9 | . 9 . . Catastrophic 1 | . 1 . . Database Lockouts . | . . . . Manual 11 | . 10 . 1 Terminals 10 | . 10 . . Fabricators . | . . . . Repair Stations . | . . . . Recycling Units . | . . . . Scanalyzers . | . . . . Garrison Access . | . . . . Terminal Hacks 2 | . 1 . 1 Terminal Index 1 | . 1 . . Proto ID Catalog 1 | . . . 1 Fabricator Hacks . | . . . . Repair Station Hacks . | . . . . Recycling Unit Hacks . | . . . . Scanalyzer . | . . . . Garrison Access Hacks . | . . . . Unauthorized Hacks . | . . . . Terminals . | . . . . Fabricators . | . . . . Repair Stations . | . . . . Recycling Units . | . . . . Scanalyzers . | . . . . Garrison Access . | . . . . Data Cores Recovered . | . . . . Used . | . . . . Hacking Detections 4 | . 4 . . Full Trace Events . | . . . . Feedback Events . | . . . . Feedback Blocked . | . . . . Robot Schematics Acquired . | . . . . Robots Built . | . . . . Authchips . | . . . . Time . | . . . . Total Robot Build Rating . | . . . . Part Schematics Acquired . | . . . . Parts Built . | . . . . Authchips . | . . . . Time . | . . . . Total Part Build Rating . | . . . . Part Studies Acquired . | . . . . Parts Repaired . | . . . . Time . | . . . . Parts Recycled . | . . . . Recycled Matter . | . . . . Retrieved Matter . | . . . . Retrieved Components . | . . . . Parts Scanalyzed . | . . . . Part Schematics Acquired . | . . . . Parts Damaged . | . . . . Bothacking | -11 -10 -10 -10 ------------ Run | Yrd Mat Min Exi Used RIF Installer . | . . . . Robots Hacked . | . . . . Non-combat . | . . . . Combat . | . . . . Robot Hacks Applied . | . . . . Relay Couplers Released . | . . . . Fabnet Peak Effective % . | . . . . Robots Rewired . | . . . . Allies Hacked . | . . . . Hacks Repelled . | . . . . Allies | -11 -10 -10 -10 -------- Run | Yrd Mat Min Exi Total Allies . | . . . . Largest Group . | . . . . Highest-Rated Group . | . . . . Highest-Rated Ally . | . . . . Total Orders . | . . . . Ally Attacks . | . . . . Total Damage . | . . . . Kills . | . . . . Allies Corrupted . | . . . . Allies Melted . | . . . . Intel | -11 -10 -10 -10 ------- Run | Yrd Mat Min Exi Active Infowar (turns) 634 | 8 192 218 216 Seismic 634 | 8 192 218 216 Robot Analysis Total . | . . . . Derelict Logs Recovered 1 | . . 1 . Drone Launches . | . . . . Drone Recoveries . | . . . . Exploration | -11 -10 -10 -10 ------------- Run | Yrd Mat Min Exi Turns Passed 697 | 71 192 218 216 Spaces Moved 538 | 44 170 147 177 Core 1 | 1 . . . Treads . | . . . . Legs 379 | . 55 147 177 Wheels 158 | 43 115 . . Hover . | . . . . Flight . | . . . . Fastest Speed 50 | 50 80 120 120 Average Speed 108 | 79 92 120 120 Slowest Speed 120 | 80 120 120 120 Overloaded Moves . | . . . . Propulsion Burnouts . | . . . . Robots Hopped . | . . . . Potential Cave-ins . | . . . . Cave-ins Triggered 1 | . 1 . . Exploration Rate (%) 32 | 3 40 38 47 Regions Visited 3 Branch Regions 2 Pre-discovered Areas . | . . . . Known Exits Taken . | . . . . Unknown Exits Taken 3 | 1 1 1 . Scrap Searched . | . . . . Spaces Dug 3 | . 3 . . Terrain Destroyed 27 | . 27 . . Melee . | . . . . Projectile 3 | . 3 . . AOE 24 | . 24 . . Terrain Rammed . | . . . . Walls Destroyed . | . . . . Machines Disabled . | . . . . Actions | -11 -10 -10 -10 --------- Run | Yrd Mat Min Exi Total 636 | 74 192 188 182 Wait 62 | 16 3 41 2 Move 535 | 43 169 146 177 Hop . | . . . . Pick Up 15 | 7 6 . 2 Fast Attach 7 | 7 . . . Attach 4 | . 4 . . Detach . | . . . . Swap 3 | . 3 . . Drop 3 | . 2 . 1 Fire 6 | 1 5 . . Melee . | . . . . Ram . | . . . . Kick 1 | . . 1 . Crush . | . . . . Escape Stasis . | . . . . Rewire . | . . . . Trap . | . . . . Miscellaneous . | . . . . Route ------- -11/Scrapyard -10/Materials -10/Mines (discovered 3 exits: [*Mat] / *Exi / [*Sub]) -10/Exiles History --------- Turn | Location | Event 10 | -11/Scrapyard | Discovered new exit (range 16) 72 | -11/Scrapyard | Entered Materials 135 | -10/Materials | Crushed by falling debris 168 | -10/Materials | Lost 4 parts (1p1n2w) 188 | -10/Materials | Core integrity fell below 50% 240 | -10/Materials | Discovered new exit (range 15) 264 | -10/Materials | Entered Mines 302 | -10/Mines | Build established: Mutant 343 | -10/Mines | Discovered new exit (range 6) 375 | -10/Mines | Learned Materials terminal intel 375 | -10/Mines | Discovered new exit (range 13) 475 | -10/Mines | Deemed a non-threat by the Exiles lab entrance 476 | -10/Mines | Discovered new exit (range 5) 482 | -10/Mines | Entered Exiles 513 | -10/Exiles | Met 8R-AWN 535 | -10/Exiles | Met EX-HEX 566 | -10/Exiles | Met EX-BIN 581 | -10/Exiles | Aligned with FarCom system 582 | -10/Exiles | Given EX-Vault access code 609 | -10/Exiles | Opened EX-Vault 626 | -10/Exiles | Found Chronowheel 666 | -10/Exiles | Warned to stay clear of 0b10 Research branches 690 | -10/Exiles | Attacked by the Exiles 697 | -10/Exiles | Core integrity fell below 20% 698 | -10/Exiles | Destroyed by DAS Turret with DAS Cannon Last Messages --------------- the 0b10 Research branches, since the FarCom signals could be picked up there, but you're welcome to try if you really want to. And if we have to leave here due to unforeseen circumstances, don't worry the FarCom system will continue to maintain contact via our distributed network. EX-BIN: And don't even think about spreading that code around. We're gonna change it right after you leave. Most certainly not to something like 1234 which I did last time as a little joke and some thief managed to sneak in here and steal a few of HEX's prototypes. System corrupted: FCS attempts to trigger Assault Rifle. System corrupted: Assault Rifle misfires. Machine disabled. EXILES: Hostile robot within lab perimeter. Defensive protocols time, folks! EX-BIN: "I just want to science!" Map ----- +----------------------------------------------------+ | ?????????????????????????#" ## #?????????? | | ?????????????????????????#""""""## #?######### | | ?????????????????????????##"###### #?#"""""""# | | ????????????????????????? "#????# #?#"""""""# | | ????????????????????????""" #????# #?#"""""""# | | ???????????????????????#""" #???## ###"" """"# | | ?????????????????????????"" #???#" """"# | | ??????????????????????????###???#" """# | | ????????????????????????????????#" """# | | ????????????????????????????????#" """# | | ????????????????????????????????#" """# | | ????????????????????????????????#" """# | | ????????????????????????????????## """" | | ?????????????????????????????????# """# | | ?????????????????????????????????#" "X" """" | | ?????????????????????????????????#" """ # | | ?????????????????? ??????????????#" """""""""# | | ???????????????????"????????????##" ########### | | ???????????????????# ??????????##"" #?????????? | | ?????????????????#?# ##??######"" #?????????? | | ????????????"#####X# #"###""""""" ##????????? | | ??????????? """""" " "" ##???##### | | ??????????? "" """ c #####"""" | | ?????????? " %" " "" | | ?????????? "" | | ?????????? @ " | | ?????????? % % | | ??????????# | | ???????????#" | | ????????????""" """""" | | ????????????? ######""" | | ????????????" ""##????#####""" | | ????????????"" """##?????????##""" | | ????????????? """##???????????#"""" | | ????????????? z ""#????????????#"" | | ?????????????? #??????????????""" | | ?????????????? ???????????????? | | ???????????????? ??????????????? | | ?????????????????? ??????????????? | | ????????????????????? ????????????????? | | ???????????????????????????????????????? " | | ????????????????????????????????????????? " | | ?????????????????????????????????????????? " " "" | | ???????????????????????????????????????????""" "?? | | ?????????????????????????????????????????????""??? | | ?????????????????????????????????????????????????? | | ?????????????????????????????????????????????????? | | ?????????????????????????????????????????????????? | | ?????????????????????????????????????????????????? | | ?????????????????????????????????????????????????? | +----------------------------------------------------+ Best States ------------- Heat Dissipation 25 Energy Generation 10 Energy Capacity 250 Matter Stores 300 Matter Capacity 300 Sight Range 16 Terrain Scan Density 10 Evasion (%) 55 Item Schematics ----------------- None Robot Schematics ------------------ None Fabricated ------------ Nothing Repaired ---------- Nothing Studied --------- None Alien Tech Used ----------------- None Achievements -------------- None Challenges ------------ None Game ------ Seed ArmoredSeismicMagmablaster Manual? 0 Play Time 00:12:55 Cumulative 8.2 hours Start 2026.03.03 @ 01:16:02 End 2026.03.03 @ 01:27:30 Sessions 1 Manual Loads 0 Difficulty Rogue Special Mode None Game No. 33 Rogue 33 Adventurer 0 Explorer 0 Win Type - Total 0 Types 0/0/0/0/0/0/0/0/0/0 Lore% 3 Gallery% 10 Achievement% 13 Wizard Run 0 Options --------- Layout 1 ASCII 0 Keyboard 0 Movement Numpad Keybinds 0 Fullscreen 2 Font 24/Terminus Map View 50x35 Zoom Use 0% Tactical HUD 0 Map Filters NONE Filters NONE Steam 1 RUN: 9942714a-8926-439e-b69f-b783299e6ee3